[Event "Titled Tuesday Blitz December 20 Early 2022"]
[White "Aradhya, Garg"]
[Black "JaloliddinIlkhomi"]
[WhiteFideId "25006746"]
[WhiteElo "2284"]
[BlackElo "2533"]
[Result "1/2-1/2"]
[Round "02"]
[TimeControl "180+2"]
[Date "2022.12.20"]
[WhiteClock "0:00:15"]
[BlackClock "0:00:15"]

1. d4 {[%clk 0:03:00]}  Nf6 {[%clk 0:02:59]} 2. c4 {[%clk 0:03:01]}  e6 {[%clk 0:02:59]} 3. Bf4 {[%clk 0:03:01]}  Bb4+ {[%clk 0:02:58]} 4. Nd2 {[%clk 0:03:01]}  b6 {[%clk 0:02:56]} 5. Nf3 {[%clk 0:03:00]}  Bb7 {[%clk 0:02:56]} 6. e3 {[%clk 0:03:00]}  Ne4 {[%clk 0:02:55]} 7. h4 {[%clk 0:02:59]}  a5 {[%clk 0:02:52]} 8. a3 {[%clk 0:02:58]}  Bd6 {[%clk 0:02:49]} 9. Nxe4 {[%clk 0:02:45]}  Bxf4 {[%clk 0:02:46]} 10. exf4 {[%clk 0:02:45]}  Bxe4 {[%clk 0:02:46]} 11. Bd3 {[%clk 0:02:44]}  Bxd3 {[%clk 0:02:41]} 12. Qxd3 {[%clk 0:02:44]}  d5 {[%clk 0:02:42]} 13. O-O-O {[%clk 0:02:41]}  Qd6 {[%clk 0:02:38]} 14. g3 {[%clk 0:02:33]}  dxc4 {[%clk 0:02:22]} 15. Qxc4 {[%clk 0:02:33]}  Qc6 {[%clk 0:02:23]} 16. Qxc6+ {[%clk 0:02:33]}  Nxc6 {[%clk 0:02:23]} 17. d5 {[%clk 0:02:33]}  Nd8 {[%clk 0:02:15]} 18. dxe6 {[%clk 0:02:31]}  Nxe6 {[%clk 0:02:14]} 19. f5 {[%clk 0:02:31]}  Nc5 {[%clk 0:02:06]} 20. Rhe1+ {[%clk 0:02:30]}  Kf8 {[%clk 0:02:05]} 21. b4 {[%clk 0:02:22]}  axb4 {[%clk 0:01:37]} 22. axb4 {[%clk 0:02:23]}  Na6 {[%clk 0:01:34]} 23. Rd7 {[%clk 0:02:22]}  Re8 {[%clk 0:01:33]} 24. Ne5 {[%clk 0:02:02]}  f6 {[%clk 0:01:22]} 25. Nd3 {[%clk 0:01:54]}  Nxb4 {[%clk 0:01:13]} 26. Rd1 {[%clk 0:01:39]}  Nxd3+ {[%clk 0:00:39]} 27. R1xd3 {[%clk 0:01:40]}  Re7 {[%clk 0:00:26]} 28. Rd8+ {[%clk 0:01:35]}  Re8 {[%clk 0:00:26]} 29. h5 {[%clk 0:01:34]}  g6 {[%clk 0:00:16]} 30. h6 {[%clk 0:00:39]}  gxf5 {[%clk 0:00:16]} 31. R3d7 {[%clk 0:00:38]}  Rg8 {[%clk 0:00:16]} 32. Rxe8+ {[%clk 0:00:37]}  Kxe8 {[%clk 0:00:17]} 33. Rxc7 {[%clk 0:00:37]}  Rg6 {[%clk 0:00:17]} 34. Rxh7 {[%clk 0:00:37]}  Kf8 {[%clk 0:00:15]} 35. Rh8+ {[%clk 0:00:35]}  Kf7 {[%clk 0:00:14]} 36. Kd2 {[%clk 0:00:27]}  b5 {[%clk 0:00:13]} 37. Ke3 {[%clk 0:00:23]}  Rg8 {[%clk 0:00:12]} 38. Rh7+ {[%clk 0:00:11]}  Kg6 {[%clk 0:00:12]} 39. Rb7 {[%clk 0:00:11]}  Kxh6 {[%clk 0:00:12]} 40. Rxb5 {[%clk 0:00:10]}  Kg5 {[%clk 0:00:13]} 41. Kf3 {[%clk 0:00:10]}  Ra8 {[%clk 0:00:13]} 42. Kg2 {[%clk 0:00:08]}  Ra3 {[%clk 0:00:12]} 43. Rb4 {[%clk 0:00:09]}  Ra5 {[%clk 0:00:11]} 44. Rd4 {[%clk 0:00:09]}  Kg6 {[%clk 0:00:11]} 45. Rc4 {[%clk 0:00:10]}  Re5 {[%clk 0:00:11]} 46. Kf3 {[%clk 0:00:10]}  Ra5 {[%clk 0:00:10]} 47. Kf4 {[%clk 0:00:11]}  Ra2 {[%clk 0:00:11]} 48. f3 {[%clk 0:00:11]}  Ra3 {[%clk 0:00:11]} 49. Rd4 {[%clk 0:00:11]}  Rb3 {[%clk 0:00:11]} 50. Rc4 {[%clk 0:00:12]}  Ra3 {[%clk 0:00:11]} 51. Rd4 {[%clk 0:00:12]}  Rb3 {[%clk 0:00:12]} 52. Ra4 {[%clk 0:00:12]}  Rc3 {[%clk 0:00:12]} 53. Rb4 {[%clk 0:00:12]}  Ra3 {[%clk 0:00:12]} 54. Rc4 {[%clk 0:00:13]}  Rb3 {[%clk 0:00:12]} 55. Ra4 {[%clk 0:00:13]}  Rc3 {[%clk 0:00:13]} 56. Rb4 {[%clk 0:00:13]}  Ra3 {[%clk 0:00:13]} 57. g4 {[%clk 0:00:14]}  fxg4 {[%clk 0:00:13]} 58. Kxg4 {[%clk 0:00:15]}  Rc3 {[%clk 0:00:13]} 59. f4 {[%clk 0:00:15]}  Rc1 {[%clk 0:00:12]} 60. f5+ {[%clk 0:00:15]}  Kh6 {[%clk 0:00:13]} 61. Rb6 {[%clk 0:00:14]}  Rg1+ {[%clk 0:00:13]} 62. Kf4 {[%clk 0:00:14]}  Rf1+ {[%clk 0:00:14]} 63. Kg4 {[%clk 0:00:14]}  Rg1+ {[%clk 0:00:14]} 64. Kf4 {[%clk 0:00:14]}  Rf1+ {[%clk 0:00:14]} 65. Kg4 {[%clk 0:00:15]}  Rg1+ {[%clk 0:00:15]} 1/2-1/2


[Site "https://www.chess.com"]

[Event "Titled Tuesday Blitz December 20 Early 2022"]
[White "Arancibia Guzman, Eduardo"]
[Black "Artem_0degov"]
[WhiteFideId "3400670"]
[WhiteElo "2333"]
[BlackElo "2661"]
[Result "0-1"]
[Round "02"]
[TimeControl "180+2"]
[Date "2022.12.20"]
[WhiteClock "0:01:00"]
[BlackClock "0:00:08"]

1. Nf3 {[%clk 0:03:00]}  d5 {[%clk 0:02:59]} 2. g3 {[%clk 0:03:00]}  c6 {[%clk 0:03:00]} 3. Bg2 {[%clk 0:03:00]}  Bf5 {[%clk 0:03:00]} 4. O-O {[%clk 0:03:00]}  Nf6 {[%clk 0:03:01]} 5. d3 {[%clk 0:03:00]}  e6 {[%clk 0:03:01]} 6. Nbd2 {[%clk 0:03:01]}  h6 {[%clk 0:03:02]} 7. e4 {[%clk 0:02:59]}  dxe4 {[%clk 0:03:01]} 8. dxe4 {[%clk 0:02:58]}  Nxe4 {[%clk 0:03:01]} 9. Qe2 {[%clk 0:02:53]}  Nxd2 {[%clk 0:02:58]} 10. Bxd2 {[%clk 0:02:53]}  Be7 {[%clk 0:02:55]} 11. Bc3 {[%clk 0:02:52]}  O-O {[%clk 0:02:54]} 12. Rad1 {[%clk 0:02:50]}  Qb6 {[%clk 0:02:52]} 13. Nd4 {[%clk 0:02:44]}  Bh7 {[%clk 0:02:48]} 14. Nxe6 {[%clk 0:02:35]}  fxe6 {[%clk 0:02:48]} 15. Qxe6+ {[%clk 0:02:35]}  Rf7 {[%clk 0:02:48]} 16. Qc8+ {[%clk 0:02:27]}  Bf8 {[%clk 0:02:44]} 17. Bh3 {[%clk 0:02:21]}  c5 {[%clk 0:01:19]} 18. Be6 {[%clk 0:02:11]}  Qc6 {[%clk 0:01:19]} 19. Rd8 {[%clk 0:02:02]}  Qxc8 {[%clk 0:01:14]} 20. Rxc8 {[%clk 0:02:02]}  Bf5 {[%clk 0:01:14]} 21. Bxf7+ {[%clk 0:01:56]}  Kxf7 {[%clk 0:01:15]} 22. Rc7+ {[%clk 0:01:52]}  Kg6 {[%clk 0:01:04]} 23. Rxb7 {[%clk 0:01:44]}  Nc6 {[%clk 0:01:03]} 24. f3 {[%clk 0:01:32]}  Re8 {[%clk 0:00:52]} 25. Re1 {[%clk 0:01:30]}  Rxe1+ {[%clk 0:00:51]} 26. Bxe1 {[%clk 0:01:31]}  Bd6 {[%clk 0:00:23]} 27. c3 {[%clk 0:01:26]}  Bc8 {[%clk 0:00:19]} 28. Rb3 {[%clk 0:01:26]}  Ba6 {[%clk 0:00:15]} 29. Ra3 {[%clk 0:01:23]}  Bb5 {[%clk 0:00:11]} 30. b3 {[%clk 0:01:19]}  c4 {[%clk 0:00:09]} 31. b4 {[%clk 0:01:19]}  a5 {[%clk 0:00:09]} 32. Kf2 {[%clk 0:01:09]}  Kf5 {[%clk 0:00:10]} 33. g4+ {[%clk 0:01:08]}  Ke5 {[%clk 0:00:10]} 34. Ke3 {[%clk 0:01:06]}  Kd5 {[%clk 0:00:10]} 35. h4 {[%clk 0:01:04]}  g5 {[%clk 0:00:10]} 36. hxg5 {[%clk 0:01:02]}  hxg5 {[%clk 0:00:11]} 37. Bd2 {[%clk 0:01:01]}  Bf4+ {[%clk 0:00:05]} 38. Ke2 {[%clk 0:01:01]}  Bxd2 {[%clk 0:00:05]} 39. Kxd2 {[%clk 0:01:02]}  a4 {[%clk 0:00:06]} 40. Ke3 {[%clk 0:01:01]}  Ke5 {[%clk 0:00:06]} 41. Kf2 {[%clk 0:00:59]}  Kf4 {[%clk 0:00:07]} 42. Ke2 {[%clk 0:00:59]}  Ne5 {[%clk 0:00:07]} 43. Kf2 {[%clk 0:01:00]}  Nxf3 {[%clk 0:00:07]} 44. Kg2 {[%clk 0:01:00]}  Kxg4 {[%clk 0:00:07]} 45. Kf2 {[%clk 0:01:00]}  Kf4 {[%clk 0:00:08]} 46. Kg2 {[%clk 0:01:00]}  g4 {[%clk 0:00:08]} 47. Kf2 {[%clk 0:01:00]}  g3+ {[%clk 0:00:08]} 48. Kg2 {[%clk 0:01:00]}  Nh4+ {[%clk 0:00:09]} 49. Kg1 {[%clk 0:01:00]}  Kf3 {[%clk 0:00:08]} 50. Rb3 {[%clk 0:00:58]}  cxb3 {[%clk 0:00:07]} 51. axb3 {[%clk 0:00:59]}  a3 {[%clk 0:00:08]} 52. c4 {[%clk 0:01:00]}  a2 {[%clk 0:00:08]} 0-1


[Site "https://www.chess.com"]

[Event "Titled Tuesday Blitz December 20 Early 2022"]
[White "Arig, Busra"]
[Black "Mykola-Bortnyk"]
[WhiteFideId "6309356"]
[WhiteElo "1850"]
[BlackElo "2919"]
[Result "1/2-1/2"]
[Round "02"]
[TimeControl "180+2"]
[Date "2022.12.20"]
[WhiteClock "0:00:22"]
[BlackClock "0:00:20"]

1. e4 {[%clk 0:03:00]}  Nf6 {[%clk 0:03:00]} 2. e5 {[%clk 0:02:53]}  Nd5 {[%clk 0:03:00]} 3. d4 {[%clk 0:02:52]}  d6 {[%clk 0:03:00]} 4. exd6 {[%clk 0:02:53]}  exd6 {[%clk 0:03:00]} 5. c4 {[%clk 0:02:53]}  Nb6 {[%clk 0:03:00]} 6. Nf3 {[%clk 0:02:53]}  Be7 {[%clk 0:03:00]} 7. Nc3 {[%clk 0:02:52]}  O-O {[%clk 0:03:00]} 8. Be2 {[%clk 0:02:52]}  Bf5 {[%clk 0:02:59]} 9. O-O {[%clk 0:02:52]}  Bf6 {[%clk 0:02:59]} 10. Be3 {[%clk 0:02:52]}  Nc6 {[%clk 0:02:57]} 11. b3 {[%clk 0:02:52]}  Re8 {[%clk 0:02:56]} 12. Qd2 {[%clk 0:02:50]}  d5 {[%clk 0:02:56]} 13. c5 {[%clk 0:02:49]}  Nc8 {[%clk 0:02:57]} 14. Rfe1 {[%clk 0:02:44]}  h6 {[%clk 0:02:54]} 15. a3 {[%clk 0:02:44]}  N8e7 {[%clk 0:02:52]} 16. b4 {[%clk 0:02:43]}  a6 {[%clk 0:02:52]} 17. Rad1 {[%clk 0:02:27]}  Be4 {[%clk 0:02:44]} 18. Qa2 {[%clk 0:02:23]}  Nf5 {[%clk 0:02:43]} 19. Nxe4 {[%clk 0:02:21]}  dxe4 {[%clk 0:02:39]} 20. Ne5 {[%clk 0:02:22]}  Bxe5 {[%clk 0:02:22]} 21. dxe5 {[%clk 0:02:22]}  Qe7 {[%clk 0:02:22]} 22. Bf4 {[%clk 0:02:22]}  Nxe5 {[%clk 0:02:16]} 23. Bxe5 {[%clk 0:02:22]}  Qxe5 {[%clk 0:02:17]} 24. Rd7 {[%clk 0:02:21]}  Re7 {[%clk 0:02:14]} 25. Rxe7 {[%clk 0:02:21]}  Nxe7 {[%clk 0:02:06]} 26. Bc4 {[%clk 0:02:21]}  Rf8 {[%clk 0:02:03]} 27. Qc2 {[%clk 0:02:18]}  Rd8 {[%clk 0:01:53]} 28. Qxe4 {[%clk 0:01:34]}  Qxe4 {[%clk 0:01:42]} 29. Rxe4 {[%clk 0:01:35]}  Rd1+ {[%clk 0:01:42]} 30. Bf1 {[%clk 0:01:35]}  Kf8 {[%clk 0:01:37]} 31. g3 {[%clk 0:01:32]}  Ra1 {[%clk 0:01:36]} 32. Re3 {[%clk 0:01:30]}  Nd5 {[%clk 0:01:25]} 33. Rd3 {[%clk 0:01:30]}  c6 {[%clk 0:01:19]} 34. Kg2 {[%clk 0:01:25]}  Ke7 {[%clk 0:01:17]} 35. Be2 {[%clk 0:01:26]}  Nc7 {[%clk 0:01:17]} 36. Bg4 {[%clk 0:01:23]}  Ne6 {[%clk 0:01:12]} 37. Bxe6 {[%clk 0:01:12]}  Kxe6 {[%clk 0:01:04]} 38. Rd6+ {[%clk 0:01:12]}  Ke7 {[%clk 0:01:04]} 39. Rd3 {[%clk 0:01:12]}  Rc1 {[%clk 0:01:05]} 40. Re3+ {[%clk 0:01:10]}  Kf6 {[%clk 0:01:03]} 41. Rf3+ {[%clk 0:01:08]}  Ke6 {[%clk 0:01:03]} 42. Re3+ {[%clk 0:01:05]}  Kd7 {[%clk 0:01:04]} 43. Rf3 {[%clk 0:01:04]}  f6 {[%clk 0:01:03]} 44. Rd3+ {[%clk 0:01:04]}  Ke7 {[%clk 0:01:00]} 45. Re3+ {[%clk 0:01:04]}  Kd8 {[%clk 0:00:50]} 46. Rd3+ {[%clk 0:01:04]}  Kc8 {[%clk 0:00:51]} 47. Re3 {[%clk 0:01:02]}  a5 {[%clk 0:00:51]} 48. Re7 {[%clk 0:01:01]}  axb4 {[%clk 0:00:51]} 49. axb4 {[%clk 0:01:01]}  g5 {[%clk 0:00:48]} 50. Re8+ {[%clk 0:00:53]}  Kd7 {[%clk 0:00:47]} 51. Rh8 {[%clk 0:00:50]}  Rc4 {[%clk 0:00:47]} 52. Rh7+ {[%clk 0:00:49]}  Kc8 {[%clk 0:00:45]} 53. Rh8+ {[%clk 0:00:47]}  Kd7 {[%clk 0:00:43]} 54. Rh7+ {[%clk 0:00:47]}  Kc8 {[%clk 0:00:44]} 55. Rxh6 {[%clk 0:00:40]}  f5 {[%clk 0:00:44]} 56. Rf6 {[%clk 0:00:39]}  f4 {[%clk 0:00:39]} 57. gxf4 {[%clk 0:00:30]}  gxf4 {[%clk 0:00:40]} 58. Kf3 {[%clk 0:00:30]}  Rxb4 {[%clk 0:00:40]} 59. Rxf4 {[%clk 0:00:30]}  Rb3+ {[%clk 0:00:37]} 60. Kg4 {[%clk 0:00:30]}  Kd7 {[%clk 0:00:37]} 61. h4 {[%clk 0:00:29]}  Ke6 {[%clk 0:00:38]} 62. h5 {[%clk 0:00:29]}  Rb1 {[%clk 0:00:37]} 63. Kg5 {[%clk 0:00:26]}  Rg1+ {[%clk 0:00:36]} 64. Rg4 {[%clk 0:00:25]}  Rf1 {[%clk 0:00:28]} 65. Rb4 {[%clk 0:00:22]}  Rxf2 {[%clk 0:00:26]} 66. Rxb7 {[%clk 0:00:22]}  Rg2+ {[%clk 0:00:26]} 67. Kh6 {[%clk 0:00:22]}  Rc2 {[%clk 0:00:25]} 68. Kh7 {[%clk 0:00:19]}  Rxc5 {[%clk 0:00:25]} 69. h6 {[%clk 0:00:20]}  Rg5 {[%clk 0:00:25]} 70. Rg7 {[%clk 0:00:20]}  Rh5 {[%clk 0:00:25]} 71. Rg6+ {[%clk 0:00:20]}  Kf7 {[%clk 0:00:25]} 72. Rxc6 {[%clk 0:00:19]}  Rg5 {[%clk 0:00:26]} 73. Rc7+ {[%clk 0:00:19]}  Kf8 {[%clk 0:00:26]} 74. Kh8 {[%clk 0:00:20]}  Rg1 {[%clk 0:00:26]} 75. h7 {[%clk 0:00:20]}  Rg2 {[%clk 0:00:25]} 76. Rc8+ {[%clk 0:00:21]}  Kf7 {[%clk 0:00:25]} 77. Rg8 {[%clk 0:00:22]}  Rf2 {[%clk 0:00:25]} 78. Rg3 {[%clk 0:00:22]}  Rf1 {[%clk 0:00:24]} 79. Ra3 {[%clk 0:00:22]}  Rg1 {[%clk 0:00:20]} 80. Ra7+ {[%clk 0:00:22]}  Kf8 {[%clk 0:00:20]} 1/2-1/2


[Site "https://www.chess.com"]

[Event "Titled Tuesday Blitz December 20 Early 2022"]
[White "Badlyplayed"]
[Black "Just_Lucky_1"]
[WhiteElo "2262"]
[BlackElo "2484"]
[Result "0-1"]
[Round "02"]
[TimeControl "180+2"]
[Date "2022.12.20"]
[WhiteClock "0:00:01"]
[BlackClock "0:01:33"]

1. e4 {[%clk 0:03:00]}  c5 {[%clk 0:02:59]} 2. d4 {[%clk 0:03:00]}  cxd4 {[%clk 0:03:00]} 3. c3 {[%clk 0:03:00]}  dxc3 {[%clk 0:03:01]} 4. Nxc3 {[%clk 0:03:00]}  d6 {[%clk 0:03:00]} 5. Nf3 {[%clk 0:03:00]}  Nc6 {[%clk 0:03:01]} 6. Bc4 {[%clk 0:02:59]}  e6 {[%clk 0:03:01]} 7. O-O {[%clk 0:02:58]}  Nf6 {[%clk 0:03:01]} 8. Qe2 {[%clk 0:02:59]}  Be7 {[%clk 0:03:02]} 9. Rd1 {[%clk 0:02:59]}  e5 {[%clk 0:03:02]} 10. h3 {[%clk 0:02:59]}  O-O {[%clk 0:03:01]} 11. Be3 {[%clk 0:02:58]}  h6 {[%clk 0:02:53]} 12. b4 {[%clk 0:02:39]}  Qe8 {[%clk 0:02:43]} 13. a3 {[%clk 0:02:12]}  Be6 {[%clk 0:02:34]} 14. Bxe6 {[%clk 0:01:41]}  fxe6 {[%clk 0:02:35]} 15. g4 {[%clk 0:01:21]}  Qg6 {[%clk 0:02:31]} 16. Kh2 {[%clk 0:01:09]}  Nxe4 {[%clk 0:02:17]} 17. Qd3 {[%clk 0:00:51]}  Rxf3 {[%clk 0:02:14]} 18. Nxe4 {[%clk 0:00:43]}  d5 {[%clk 0:02:08]} 19. Nc5 {[%clk 0:00:25]}  e4 {[%clk 0:02:05]} 20. Qb5 {[%clk 0:00:20]}  Bd6+ {[%clk 0:01:53]} 21. Kg2 {[%clk 0:00:16]}  Ne5 {[%clk 0:01:49]} 22. Qxb7 {[%clk 0:00:13]}  Raf8 {[%clk 0:01:48]} 23. Qa6 {[%clk 0:00:04]}  Nxg4 {[%clk 0:01:37]} 24. hxg4 {[%clk 0:00:01]}  Qxg4+ {[%clk 0:01:38]} 25. Kf1 {[%clk 0:00:01]}  Rxe3 {[%clk 0:01:33]} 0-1


[Site "https://www.chess.com"]

[Event "Titled Tuesday Blitz December 20 Early 2022"]
[White "Baki, Peter"]
[Black "Sadykov_Ramil"]
[WhiteFideId "718459"]
[WhiteElo "2100"]
[BlackElo "2546"]
[Result "1/2-1/2"]
[Round "02"]
[TimeControl "180+2"]
[Date "2022.12.20"]
[WhiteClock "0:00:07"]
[BlackClock "0:00:03"]

1. e4 {[%clk 0:03:00]}  c5 {[%clk 0:02:51]} 2. Nf3 {[%clk 0:03:00]}  e6 {[%clk 0:02:44]} 3. b3 {[%clk 0:02:58]}  Nc6 {[%clk 0:02:40]} 4. Bb2 {[%clk 0:02:58]}  d6 {[%clk 0:02:32]} 5. d4 {[%clk 0:02:56]}  cxd4 {[%clk 0:02:32]} 6. Nxd4 {[%clk 0:02:56]}  Nf6 {[%clk 0:02:31]} 7. Bd3 {[%clk 0:02:56]}  Be7 {[%clk 0:02:24]} 8. O-O {[%clk 0:02:56]}  O-O {[%clk 0:02:23]} 9. c4 {[%clk 0:02:56]}  d5 {[%clk 0:02:17]} 10. cxd5 {[%clk 0:02:43]}  exd5 {[%clk 0:02:16]} 11. Nxc6 {[%clk 0:02:42]}  bxc6 {[%clk 0:02:17]} 12. e5 {[%clk 0:02:43]}  Ne4 {[%clk 0:02:07]} 13. Nd2 {[%clk 0:02:40]}  Nc5 {[%clk 0:01:50]} 14. Be2 {[%clk 0:02:18]}  d4 {[%clk 0:01:40]} 15. Rc1 {[%clk 0:02:16]}  d3 {[%clk 0:01:39]} 16. Bf3 {[%clk 0:02:16]}  Bb7 {[%clk 0:01:12]} 17. Re1 {[%clk 0:02:10]}  a5 {[%clk 0:01:09]} 18. Re3 {[%clk 0:02:09]}  a4 {[%clk 0:00:59]} 19. b4 {[%clk 0:02:04]}  a3 {[%clk 0:00:58]} 20. Ba1 {[%clk 0:02:01]}  Na4 {[%clk 0:00:28]} 21. Qb3 {[%clk 0:01:34]}  Nb2 {[%clk 0:00:24]} 22. Bxb2 {[%clk 0:01:24]}  axb2 {[%clk 0:00:25]} 23. Rb1 {[%clk 0:01:22]}  Qd4 {[%clk 0:00:09]} 24. Rxd3 {[%clk 0:00:58]}  Qxe5 {[%clk 0:00:09]} 25. Nc4 {[%clk 0:00:48]}  Qb5 {[%clk 0:00:05]} 26. Rxb2 {[%clk 0:00:43]}  Ba6 {[%clk 0:00:04]} 27. Rc2 {[%clk 0:00:18]}  Qxb4 {[%clk 0:00:05]} 28. Qxb4 {[%clk 0:00:19]}  Bxb4 {[%clk 0:00:06]} 29. Bxc6 {[%clk 0:00:18]}  Rac8 {[%clk 0:00:06]} 30. Bd5 {[%clk 0:00:19]}  Rfd8 {[%clk 0:00:06]} 31. g3 {[%clk 0:00:17]}  h5 {[%clk 0:00:04]} 32. Rd4 {[%clk 0:00:16]}  Rxd5 {[%clk 0:00:03]} 33. Rxd5 {[%clk 0:00:16]}  Rxc4 {[%clk 0:00:01]} 34. Rxc4 {[%clk 0:00:16]}  Bxc4 {[%clk 0:00:01]} 35. Rd4 {[%clk 0:00:16]}  Bxa2 {[%clk 0:00:02]} 36. Rxb4 {[%clk 0:00:16]}  Be6 {[%clk 0:00:02]} 37. f4 {[%clk 0:00:16]}  g6 {[%clk 0:00:03]} 38. Kf2 {[%clk 0:00:17]}  Kg7 {[%clk 0:00:03]} 39. Ke3 {[%clk 0:00:18]}  Kf6 {[%clk 0:00:04]} 40. Rb5 {[%clk 0:00:17]}  Bg4 {[%clk 0:00:04]} 41. Ra5 {[%clk 0:00:18]}  Bh3 {[%clk 0:00:04]} 42. Ke4 {[%clk 0:00:17]}  Be6 {[%clk 0:00:03]} 43. Ra6 {[%clk 0:00:17]}  Kg7 {[%clk 0:00:02]} 44. Ke5 {[%clk 0:00:17]}  Bg4 {[%clk 0:00:03]} 45. Ra7 {[%clk 0:00:17]}  Bh3 {[%clk 0:00:03]} 46. Kd6 {[%clk 0:00:17]}  Kf6 {[%clk 0:00:03]} 47. Ra5 {[%clk 0:00:17]}  Bf5 {[%clk 0:00:03]} 48. Kc7 {[%clk 0:00:18]}  Bg4 {[%clk 0:00:04]} 49. Kd8 {[%clk 0:00:18]}  Be6 {[%clk 0:00:04]} 50. Ke8 {[%clk 0:00:18]}  Bc4 {[%clk 0:00:04]} 51. Kf8 {[%clk 0:00:19]}  Be6 {[%clk 0:00:04]} 52. Ra6 {[%clk 0:00:16]}  Kf5 {[%clk 0:00:02]} 53. Kg7 {[%clk 0:00:17]}  Kg4 {[%clk 0:00:01]} 54. Rb6 {[%clk 0:00:16]}  h4 {[%clk 0:00:01]} 55. gxh4 {[%clk 0:00:14]}  Kxh4 {[%clk 0:00:02]} 56. Rxe6 {[%clk 0:00:11]}  fxe6 {[%clk 0:00:03]} 57. Kxg6 {[%clk 0:00:12]}  Kg4 {[%clk 0:00:03]} 58. h4 {[%clk 0:00:06]}  Kxh4 {[%clk 0:00:03]} 59. Kf6 {[%clk 0:00:06]}  Kg4 {[%clk 0:00:03]} 60. Ke5 {[%clk 0:00:07]}  Kf3 {[%clk 0:00:03]} 61. f5 {[%clk 0:00:06]}  exf5 {[%clk 0:00:03]} 62. Kxf5 {[%clk 0:00:07]} 1/2-1/2


[Site "https://www.chess.com"]

[Event "Titled Tuesday Blitz December 20 Early 2022"]
[White "Begmuratov, Khumoyun"]
[Black "Sapon, Ilia"]
[WhiteFideId "14210207"]
[BlackFideId "13504746"]
[WhiteElo "2387"]
[BlackElo "2074"]
[Result "1-0"]
[Round "02"]
[TimeControl "180+2"]
[Date "2022.12.20"]
[WhiteClock "0:00:09"]
[BlackClock "0:00:21"]

1. e4 {[%clk 0:03:00]}  c5 {[%clk 0:02:59]} 2. Nc3 {[%clk 0:03:00]}  Nc6 {[%clk 0:02:57]} 3. Bb5 {[%clk 0:02:59]}  e6 {[%clk 0:02:57]} 4. Bxc6 {[%clk 0:02:58]}  bxc6 {[%clk 0:02:58]} 5. d3 {[%clk 0:02:58]}  d5 {[%clk 0:02:58]} 6. Nf3 {[%clk 0:02:55]}  Nf6 {[%clk 0:02:58]} 7. O-O {[%clk 0:02:54]}  Be7 {[%clk 0:02:57]} 8. Bf4 {[%clk 0:02:50]}  Ba6 {[%clk 0:02:52]} 9. Re1 {[%clk 0:02:49]}  O-O {[%clk 0:02:51]} 10. Qd2 {[%clk 0:02:48]}  Re8 {[%clk 0:02:37]} 11. h3 {[%clk 0:02:44]}  c4 {[%clk 0:02:25]} 12. dxc4 {[%clk 0:02:32]}  Bxc4 {[%clk 0:02:21]} 13. Ne5 {[%clk 0:02:26]}  Qb6 {[%clk 0:02:10]} 14. b3 {[%clk 0:02:06]}  Ba6 {[%clk 0:02:05]} 15. Be3 {[%clk 0:02:05]}  c5 {[%clk 0:01:55]} 16. exd5 {[%clk 0:02:03]}  Rad8 {[%clk 0:01:49]} 17. Nc6 {[%clk 0:02:00]}  exd5 {[%clk 0:01:35]} 18. Nxd8 {[%clk 0:01:51]}  Rxd8 {[%clk 0:01:36]} 19. Bg5 {[%clk 0:01:42]}  Qd6 {[%clk 0:01:27]} 20. Rad1 {[%clk 0:01:33]}  Bb7 {[%clk 0:01:26]} 21. Qf4 {[%clk 0:01:26]}  Qd7 {[%clk 0:01:18]} 22. Qe3 {[%clk 0:01:01]}  Bf8 {[%clk 0:01:10]} 23. Bxf6 {[%clk 0:01:01]}  gxf6 {[%clk 0:01:10]} 24. Qg3+ {[%clk 0:01:01]}  Kh8 {[%clk 0:01:08]} 25. Ne2 {[%clk 0:00:45]}  d4 {[%clk 0:01:02]} 26. Nf4 {[%clk 0:00:42]}  Bd6 {[%clk 0:00:53]} 27. Qh4 {[%clk 0:00:42]}  Qf5 {[%clk 0:00:52]} 28. Nh5 {[%clk 0:00:35]}  Be5 {[%clk 0:00:33]} 29. Qg4 {[%clk 0:00:17]}  Qg6 {[%clk 0:00:24]} 30. f4 {[%clk 0:00:13]}  Bd6 {[%clk 0:00:20]} 31. Qxg6 {[%clk 0:00:10]}  hxg6 {[%clk 0:00:21]} 32. Nxf6 {[%clk 0:00:10]}  Bxf4 {[%clk 0:00:21]} 33. Re7 {[%clk 0:00:10]}  Be3+ {[%clk 0:00:21]} 34. Rxe3 {[%clk 0:00:09]} 1-0


[Site "https://www.chess.com"]

[Event "Titled Tuesday Blitz December 20 Early 2022"]
[White "Blackwood, Ryan"]
[Black "Al-Kailani, Zaid"]
[WhiteFideId "7400640"]
[BlackFideId "8100187"]
[WhiteElo "1941"]
[BlackElo "2053"]
[Result "0-1"]
[Round "02"]
[TimeControl "180+2"]
[Date "2022.12.20"]
[WhiteClock "0:00:05"]
[BlackClock "0:00:46"]

1. e4 {[%clk 0:03:00]}  e6 {[%clk 0:02:58]} 2. d4 {[%clk 0:02:58]}  d5 {[%clk 0:02:59]} 3. exd5 {[%clk 0:02:59]}  exd5 {[%clk 0:02:59]} 4. Nf3 {[%clk 0:03:00]}  Nc6 {[%clk 0:02:59]} 5. Bd3 {[%clk 0:03:00]}  Bd6 {[%clk 0:02:59]} 6. O-O {[%clk 0:03:00]}  Bg4 {[%clk 0:02:59]} 7. Re1+ {[%clk 0:02:48]}  Nge7 {[%clk 0:02:59]} 8. h3 {[%clk 0:02:45]}  Bh5 {[%clk 0:02:30]} 9. c3 {[%clk 0:02:44]}  Qd7 {[%clk 0:02:29]} 10. Bg5 {[%clk 0:02:23]}  f6 {[%clk 0:02:27]} 11. Be3 {[%clk 0:02:14]}  O-O-O {[%clk 0:02:24]} 12. Nbd2 {[%clk 0:02:14]}  g5 {[%clk 0:02:20]} 13. Qa4 {[%clk 0:01:50]}  Kb8 {[%clk 0:02:09]} 14. b4 {[%clk 0:01:34]}  Nxd4 {[%clk 0:01:57]} 15. Qa3 {[%clk 0:01:03]}  Nxf3+ {[%clk 0:01:55]} 16. Nxf3 {[%clk 0:01:03]}  Nc8 {[%clk 0:01:51]} 17. Nd4 {[%clk 0:01:01]}  Bg6 {[%clk 0:01:50]} 18. Bb5 {[%clk 0:00:49]}  c6 {[%clk 0:01:49]} 19. Ba4 {[%clk 0:00:49]}  Nb6 {[%clk 0:01:12]} 20. Bd1 {[%clk 0:00:48]}  Nc4 {[%clk 0:01:09]} 21. Qa4 {[%clk 0:00:45]}  Nxe3 {[%clk 0:01:06]} 22. Rxe3 {[%clk 0:00:46]}  Rhe8 {[%clk 0:01:04]} 23. Bg4 {[%clk 0:00:35]}  f5 {[%clk 0:01:04]} 24. Rxe8 {[%clk 0:00:35]}  Rxe8 {[%clk 0:01:03]} 25. Be2 {[%clk 0:00:35]}  g4 {[%clk 0:00:57]} 26. h4 {[%clk 0:00:33]}  g3 {[%clk 0:00:57]} 27. f3 {[%clk 0:00:30]}  Qe7 {[%clk 0:00:49]} 28. Kf1 {[%clk 0:00:13]}  Qe3 {[%clk 0:00:47]} 29. Nxc6+ {[%clk 0:00:05]}  bxc6 {[%clk 0:00:46]} 30. Ke1 {[%clk 0:00:05]}  Qxe2# {[%clk 0:00:46]} 0-1


[Site "https://www.chess.com"]